[Event "*** Titled Tuesday Blitz"]
[Site "Chess.com"]
[Date "2021.02.16"]
[Round "8"]
[White "mbojan"]
[Black "kleopl"]
[Result "1-0"]
[WhiteElo "2625"]
[BlackElo "2466"]
[TimeControl "180+1"]
[EndTime "11:30:19 PST"]
[Termination "mbojan won on time"]

1. g3 {[%clk 0:03:00.9]} 1... f5 {[%clk 0:02:58.1]} 2. d3 {[%clk 0:02:59.7]}
2... Nf6 {[%clk 0:02:58.4]} 3. Bg2 {[%clk 0:03:00.3]} 3... g6 {[%clk 0:02:58.5]}
4. Nd2 {[%clk 0:03:01]} 4... Bg7 {[%clk 0:02:59.2]} 5. e4 {[%clk 0:03:01.4]}
5... d6 {[%clk 0:02:58.6]} 6. f4 {[%clk 0:03:01.3]} 6... c6 {[%clk 0:02:52.1]}
7. Ngf3 {[%clk 0:03:01]} 7... O-O {[%clk 0:02:50.6]} 8. O-O {[%clk 0:02:58]}
8... Qb6+ {[%clk 0:02:47.7]} 9. Kh1 {[%clk 0:02:57.8]} 9... Ng4 {[%clk
0:02:48.3]} 10. Qe2 {[%clk 0:02:55.5]} 10... Qe3 {[%clk 0:02:37.5]} 11. Re1
{[%clk 0:02:32]} 11... Qb6 {[%clk 0:01:55.5]} 12. Nc4 {[%clk 0:02:24.8]} 12...
Qc5 {[%clk 0:01:41.2]} 13. h3 {[%clk 0:02:22.5]} 13... fxe4 {[%clk 0:01:22.8]}
14. dxe4 {[%clk 0:01:41.8]} 14... Nf6 {[%clk 0:01:20.2]} 15. Be3 {[%clk
0:01:34.7]} 15... Nxe4 {[%clk 0:01:12]} 16. Kh2 {[%clk 0:01:14]} 16... Qh5
{[%clk 0:00:52.2]} 17. Bg1 {[%clk 0:01:03.6]} 17... d5 {[%clk 0:00:49.7]} 18.
Nce5 {[%clk 0:01:03.3]} 18... Nd7 {[%clk 0:00:33.3]} 19. Nxd7 {[%clk 0:00:43.3]}
19... Bxd7 {[%clk 0:00:34.2]} 20. Bd4 {[%clk 0:00:42.4]} 20... Bh6 {[%clk
0:00:24.3]} 21. Be5 {[%clk 0:00:25.6]} 21... Rae8 {[%clk 0:00:22.3]} 22. Rad1
{[%clk 0:00:23.9]} 22... Bc8 {[%clk 0:00:19.2]} 23. Rd3 {[%clk 0:00:23.7]} 23...
Bg7 {[%clk 0:00:18.6]} 24. Bxg7 {[%clk 0:00:22.5]} 24... Kxg7 {[%clk 0:00:19.5]}
25. Ne5 {[%clk 0:00:23.1]} 25... Nf6 {[%clk 0:00:14.3]} 26. g4 {[%clk
0:00:15.4]} 26... Qh4 {[%clk 0:00:14.3]} 27. Rg3 {[%clk 0:00:13.9]} 27... Kg8
{[%clk 0:00:07.9]} 28. Nf3 {[%clk 0:00:13.6]} 28... Qh6 {[%clk 0:00:03.9]} 29.
g5 {[%clk 0:00:13.5]} 29... Qh5 {[%clk 0:00:04.1]} 30. gxf6 {[%clk 0:00:12.9]}
30... exf6 {[%clk 0:00:04.6]} 31. Qxe8 {[%clk 0:00:13]} 31... Rxe8 {[%clk
0:00:05.3]} 32. Rxe8+ {[%clk 0:00:13.9]} 32... Kf7 {[%clk 0:00:06]} 33. Rxc8
{[%clk 0:00:14.8]} 33... Qf5 {[%clk 0:00:06]} 34. Rc7+ {[%clk 0:00:15.3]} 34...
Ke8 {[%clk 0:00:06.1]} 35. Rxb7 {[%clk 0:00:15.6]} 35... Qxc2 {[%clk 0:00:06.5]}
36. Rxh7 {[%clk 0:00:14.6]} 36... c5 {[%clk 0:00:06.7]} 37. f5 {[%clk
0:00:14.6]} 37... g5 {[%clk 0:00:05.1]} 38. h4 {[%clk 0:00:14.9]} 38... g4
{[%clk 0:00:03.3]} 39. Rxg4 {[%clk 0:00:14.4]} 39... Kf8 {[%clk 0:00:03.2]} 40.
Rgg7 {[%clk 0:00:14.3]} 40... Qxf5 {[%clk 0:00:03]} 41. Rf7+ {[%clk 0:00:14.7]}
41... Kg8 {[%clk 0:00:03.2]} 42. Rhg7+ {[%clk 0:00:14.5]} 42... Kh8 {[%clk
0:00:03.6]} 43. Rh7+ {[%clk 0:00:13.9]} 43... Kg8 {[%clk 0:00:03.5]} 44. Rxa7
{[%clk 0:00:14.8]} 44... Qf4+ {[%clk 0:00:03.5]} 45. Kh3 {[%clk 0:00:13.8]}
45... Qf5+ {[%clk 0:00:03.7]} 46. Kg3 {[%clk 0:00:14.4]} 46... d4 {[%clk
0:00:04]} 47. Rhd7 {[%clk 0:00:13.4]} 47... Qg6+ {[%clk 0:00:01.7]} 48. Kh2
{[%clk 0:00:13.5]} 48... Qe8 {[%clk 0:00:01.7]} 49. Rg7+ {[%clk 0:00:12.9]}
49... Kh8 {[%clk 0:00:02.2]} 50. Rge7 {[%clk 0:00:12.8]} 50... Qb8+ {[%clk
0:00:01.1]} 51. Kg1 {[%clk 0:00:12.1]} 1-0

[Event "*** Titled Tuesday Blitz"]
[Site "Chess.com"]
[Date "2021.02.16"]
[Round "8"]
[White "AttractiveMustard"]
[Black "Ajedrez_con_German"]
[Result "1/2-1/2"]
[WhiteElo "2382"]
[BlackElo "2583"]
[TimeControl "180+1"]
[EndTime "11:30:20 PST"]
[Termination "Game drawn by repetition"]

1. e4 {[%clk 0:02:59.5]} 1... e6 {[%clk 0:03:00]} 2. d4 {[%clk 0:02:58.7]} 2...
d5 {[%clk 0:03:00.4]} 3. Nd2 {[%clk 0:02:59.3]} 3... h6 {[%clk 0:02:57.4]} 4.
Ngf3 {[%clk 0:02:58.6]} 4... Nf6 {[%clk 0:02:50.2]} 5. Bd3 {[%clk 0:02:58.3]}
5... c5 {[%clk 0:02:48.2]} 6. dxc5 {[%clk 0:02:57.6]} 6... Bxc5 {[%clk
0:02:45.6]} 7. O-O {[%clk 0:02:57.3]} 7... Nc6 {[%clk 0:02:45.5]} 8. Qe2 {[%clk
0:02:56]} 8... O-O {[%clk 0:02:37.7]} 9. e5 {[%clk 0:02:52.1]} 9... Nd7 {[%clk
0:02:36.3]} 10. c4 {[%clk 0:02:43.8]} 10... f6 {[%clk 0:02:11.1]} 11. cxd5
{[%clk 0:02:40]} 11... Ncxe5 {[%clk 0:02:06.7]} 12. dxe6 {[%clk 0:02:31.6]}
12... Nxd3 {[%clk 0:01:35.3]} 13. Qxd3 {[%clk 0:02:31.5]} 13... Nb6 {[%clk
0:01:28.4]} 14. Qc2 {[%clk 0:01:44.3]} 14... Qc7 {[%clk 0:01:00]} 15. Nb3 {[%clk
0:01:36.1]} 15... Bd6 {[%clk 0:00:58]} 16. Qxc7 {[%clk 0:01:34.6]} 16... Bxc7
{[%clk 0:00:58.1]} 17. Re1 {[%clk 0:01:32.2]} 17... Re8 {[%clk 0:00:57.1]} 18.
Nbd4 {[%clk 0:01:29.2]} 18... Nc4 {[%clk 0:00:54.7]} 19. b3 {[%clk 0:00:58.8]}
19... Ne5 {[%clk 0:00:53.6]} 20. Bb2 {[%clk 0:00:57.4]} 20... Nxf3+ {[%clk
0:00:53.1]} 21. Nxf3 {[%clk 0:00:57.3]} 21... Bxe6 {[%clk 0:00:48.5]} 22. Nd4
{[%clk 0:00:56.4]} 22... Bd7 {[%clk 0:00:46.1]} 23. Rac1 {[%clk 0:00:54.3]}
23... Rxe1+ {[%clk 0:00:45.7]} 24. Rxe1 {[%clk 0:00:53.6]} 24... Re8 {[%clk
0:00:42.8]} 25. Rxe8+ {[%clk 0:00:53.5]} 25... Bxe8 {[%clk 0:00:42.7]} 26. Kf1
{[%clk 0:00:51.8]} 26... Kf7 {[%clk 0:00:40.3]} 27. Ke2 {[%clk 0:00:46.4]} 27...
h5 {[%clk 0:00:39.6]} 28. h3 {[%clk 0:00:42]} 28... Bd7 {[%clk 0:00:38]} 29. Bc3
{[%clk 0:00:40.2]} 29... h4 {[%clk 0:00:33.5]} 30. a4 {[%clk 0:00:32.3]} 30...
g5 {[%clk 0:00:33.3]} 31. Kd3 {[%clk 0:00:27.8]} 31... Bb6 {[%clk 0:00:24.6]}
32. f3 {[%clk 0:00:14.4]} 32... a6 {[%clk 0:00:23.6]} 33. Ke4 {[%clk 0:00:14.3]}
33... Bxd4 {[%clk 0:00:17.6]} 34. Bxd4 {[%clk 0:00:13.9]} 34... Ke6 {[%clk
0:00:17]} 35. Bc3 {[%clk 0:00:13]} 35... Bc6+ {[%clk 0:00:16.2]} 36. Ke3 {[%clk
0:00:13]} 36... Bd5 {[%clk 0:00:16.3]} 37. b4 {[%clk 0:00:12.4]} 37... Bc4
{[%clk 0:00:15.1]} 38. a5 {[%clk 0:00:10.2]} 38... Kf5 {[%clk 0:00:14.6]} 39.
Bb2 {[%clk 0:00:09.6]} 39... Bb5 {[%clk 0:00:14.9]} 40. Bc3 {[%clk 0:00:09.4]}
40... Bc6 {[%clk 0:00:14.9]} 41. Bb2 {[%clk 0:00:09.5]} 41... Kg6 {[%clk
0:00:13.8]} 42. Bc3 {[%clk 0:00:09.9]} 42... f5 {[%clk 0:00:13.8]} 43. Bb2
{[%clk 0:00:10.3]} 43... Kh5 {[%clk 0:00:13.3]} 44. Bf6 {[%clk 0:00:09.5]} 44...
g4 {[%clk 0:00:12.9]} 45. fxg4+ {[%clk 0:00:07.2]} 45... fxg4 {[%clk 0:00:13.8]}
46. hxg4+ {[%clk 0:00:07.4]} 46... Kxg4 {[%clk 0:00:14.7]} 47. Kf2 {[%clk
0:00:07.6]} 47... Bd5 {[%clk 0:00:15.2]} 48. Be7 {[%clk 0:00:07.3]} 48... Be6
{[%clk 0:00:15.1]} 49. Bd8 {[%clk 0:00:07.4]} 49... Bd5 {[%clk 0:00:15.2]} 50.
Be7 {[%clk 0:00:07.6]} 50... Bc6 {[%clk 0:00:15.4]} 51. Bd8 {[%clk 0:00:07.8]}
51... h3 {[%clk 0:00:14.1]} 52. gxh3+ {[%clk 0:00:06.7]} 52... Kxh3 {[%clk
0:00:15]} 53. Ke3 {[%clk 0:00:07.3]} 53... Bb5 {[%clk 0:00:15.1]} 54. Kd4 {[%clk
0:00:08.2]} 54... Kg4 {[%clk 0:00:14.4]} 55. Kc5 {[%clk 0:00:09.1]} 55... Kh3
{[%clk 0:00:15.3]} 56. Bb6 {[%clk 0:00:09.1]} 56... Kg4 {[%clk 0:00:16.2]} 57.
Kd6 {[%clk 0:00:09.6]} 57... Kh3 {[%clk 0:00:17.1]} 58. Kc5 {[%clk 0:00:09.7]}
58... Kg4 {[%clk 0:00:18]} 59. Kd6 {[%clk 0:00:10.6]} 59... Kh3 {[%clk
0:00:18.9]} 60. Kc5 {[%clk 0:00:11.5]} 1/2-1/2

[Event "*** Titled Tuesday Blitz"]
[Site "Chess.com"]
[Date "2021.02.16"]
[Round "8"]
[White "esapunov"]
[Black "ErikRonka"]
[Result "1/2-1/2"]
[WhiteElo "2661"]
[BlackElo "2495"]
[TimeControl "180+1"]
[EndTime "11:30:25 PST"]
[Termination "Game drawn - insufficient material"]

1. c4 {[%clk 0:03:00.9]} 1... c6 {[%clk 0:02:59.4]} 2. Nf3 {[%clk 0:03:00.5]}
2... d5 {[%clk 0:03:00.3]} 3. b3 {[%clk 0:03:00.3]} 3... Bg4 {[%clk 0:02:59]} 4.
e3 {[%clk 0:02:58.4]} 4... Nf6 {[%clk 0:02:57.3]} 5. Bb2 {[%clk 0:02:57.7]} 5...
e6 {[%clk 0:02:56.7]} 6. h3 {[%clk 0:02:57.9]} 6... Bh5 {[%clk 0:02:56.2]} 7.
Nc3 {[%clk 0:02:56.1]} 7... Nbd7 {[%clk 0:02:56.6]} 8. g4 {[%clk 0:02:55.6]}
8... Bg6 {[%clk 0:02:56.2]} 9. Nh4 {[%clk 0:02:56.2]} 9... Nc5 {[%clk
0:02:30.1]} 10. Nxg6 {[%clk 0:02:46.1]} 10... hxg6 {[%clk 0:02:31]} 11. Qc2
{[%clk 0:02:38.3]} 11... Nxg4 {[%clk 0:02:12.2]} 12. d4 {[%clk 0:02:37.4]} 12...
Nd7 {[%clk 0:02:04.1]} 13. O-O-O {[%clk 0:02:36.2]} 13... Qa5 {[%clk 0:01:37]}
14. Bg2 {[%clk 0:02:21.5]} 14... Ngf6 {[%clk 0:01:30.7]} 15. e4 {[%clk
0:02:21.6]} 15... dxe4 {[%clk 0:01:28.8]} 16. Nxe4 {[%clk 0:02:12.6]} 16... Nxe4
{[%clk 0:01:18.3]} 17. Bxe4 {[%clk 0:02:12]} 17... Nf6 {[%clk 0:00:37.3]} 18.
Bg2 {[%clk 0:01:54.9]} 18... Ba3 {[%clk 0:00:31.6]} 19. Bxa3 {[%clk 0:01:31.8]}
19... Qxa3+ {[%clk 0:00:31.2]} 20. Kb1 {[%clk 0:01:32.6]} 20... O-O {[%clk
0:00:29.6]} 21. Bf3 {[%clk 0:01:31.1]} 21... Rad8 {[%clk 0:00:29]} 22. Rhe1
{[%clk 0:01:29.8]} 22... c5 {[%clk 0:00:26.6]} 23. d5 {[%clk 0:01:26.2]} 23...
exd5 {[%clk 0:00:27.5]} 24. cxd5 {[%clk 0:01:26.2]} 24... b5 {[%clk 0:00:27.4]}
25. d6 {[%clk 0:01:23.1]} 25... c4 {[%clk 0:00:25.9]} 26. Re7 {[%clk 0:01:13]}
26... Rxd6 {[%clk 0:00:22]} 27. Rxd6 {[%clk 0:01:10.4]} 27... Qxd6 {[%clk
0:00:22.9]} 28. Rxa7 {[%clk 0:01:10.7]} 28... cxb3 {[%clk 0:00:22]} 29. axb3
{[%clk 0:01:10.5]} 29... Qf4 {[%clk 0:00:18.6]} 30. Qd3 {[%clk 0:01:07.9]} 30...
Qe5 {[%clk 0:00:13.3]} 31. Ka2 {[%clk 0:01:00.1]} 31... Rc8 {[%clk 0:00:11.7]}
32. Ra8 {[%clk 0:00:56.5]} 32... Rxa8+ {[%clk 0:00:11.4]} 33. Bxa8 {[%clk
0:00:56.6]} 33... Qb8 {[%clk 0:00:11]} 34. Qf3 {[%clk 0:00:54.9]} 34... Qa7+
{[%clk 0:00:10.9]} 35. Kb1 {[%clk 0:00:54]} 35... b4 {[%clk 0:00:11.8]} 36. Bc6
{[%clk 0:00:52.3]} 36... Qd4 {[%clk 0:00:11.1]} 37. Bb5 {[%clk 0:00:51.3]} 37...
Qd2 {[%clk 0:00:10.4]} 38. Bc4 {[%clk 0:00:50.9]} 38... Qd4 {[%clk 0:00:09.2]}
39. Kc2 {[%clk 0:00:50.5]} 39... g5 {[%clk 0:00:09.2]} 40. Qf5 {[%clk
0:00:44.9]} 40... g6 {[%clk 0:00:05.4]} 41. Qxg6+ {[%clk 0:00:44.3]} 41... Kh8
{[%clk 0:00:03]} 42. Qh6+ {[%clk 0:00:42.8]} 42... Nh7 {[%clk 0:00:02.2]} 43.
Qh5 {[%clk 0:00:33.1]} 43... Qxf2+ {[%clk 0:00:02.1]} 44. Qe2 {[%clk 0:00:31.6]}
44... Qxe2+ {[%clk 0:00:02.1]} 45. Bxe2 {[%clk 0:00:31.8]} 45... f5 {[%clk
0:00:02.9]} 46. Kd3 {[%clk 0:00:32]} 46... Nf6 {[%clk 0:00:03]} 47. Kc4 {[%clk
0:00:32.1]} 47... Kg7 {[%clk 0:00:01.7]} 48. Kxb4 {[%clk 0:00:32.3]} 48... Kf7
{[%clk 0:00:02.6]} 49. Kc5 {[%clk 0:00:31.5]} 49... Ke7 {[%clk 0:00:03.5]} 50.
Kc6 {[%clk 0:00:31.7]} 50... g4 {[%clk 0:00:04]} 51. hxg4 {[%clk 0:00:30.9]}
51... fxg4 {[%clk 0:00:04.9]} 52. b4 {[%clk 0:00:31.5]} 52... g3 {[%clk
0:00:05.4]} 53. Bf3 {[%clk 0:00:31.7]} 53... Kd8 {[%clk 0:00:04.3]} 54. b5
{[%clk 0:00:31.3]} 54... Kc8 {[%clk 0:00:04.7]} 55. b6 {[%clk 0:00:30.9]} 55...
Kb8 {[%clk 0:00:05.1]} 56. Kd6 {[%clk 0:00:30]} 56... Ng4 {[%clk 0:00:05.1]} 57.
Kd5 {[%clk 0:00:27.4]} 57... Ne3+ {[%clk 0:00:05.1]} 58. Ke4 {[%clk 0:00:27]}
58... g2 {[%clk 0:00:05.2]} 59. Bxg2 {[%clk 0:00:26.8]} 59... Nxg2 {[%clk
0:00:06.1]} 60. Kd4 {[%clk 0:00:27.4]} 60... Kb7 {[%clk 0:00:06.2]} 61. Kc5
{[%clk 0:00:27.4]} 61... Nf4 {[%clk 0:00:06.7]} 62. Kd6 {[%clk 0:00:27.5]} 62...
Nd3 {[%clk 0:00:06.9]} 63. Kd5 {[%clk 0:00:27.6]} 63... Kxb6 {[%clk 0:00:07.3]}
1/2-1/2

[Event "*** Titled Tuesday Blitz"]
[Site "Chess.com"]
[Date "2021.02.16"]
[Round "8"]
[White "chescomhuynya"]
[Black "drragnar1"]
[Result "1-0"]
[WhiteElo "2592"]
[BlackElo "2420"]
[TimeControl "180+1"]
[EndTime "11:30:28 PST"]
[Termination "chescomhuynya won by resignation"]

1. d4 {[%clk 0:03:00.9]} 1... Nf6 {[%clk 0:02:58.1]} 2. c4 {[%clk 0:03:01.6]}
2... c5 {[%clk 0:02:58.4]} 3. d5 {[%clk 0:02:56.9]} 3... e5 {[%clk 0:02:58.6]}
4. Nc3 {[%clk 0:02:56.5]} 4... d6 {[%clk 0:02:58.4]} 5. e4 {[%clk 0:02:57]} 5...
Be7 {[%clk 0:02:58.8]} 6. Be2 {[%clk 0:02:57]} 6... O-O {[%clk 0:02:59.2]} 7.
Nf3 {[%clk 0:02:56.5]} 7... Ne8 {[%clk 0:02:59.6]} 8. O-O {[%clk 0:02:55.9]}
8... g6 {[%clk 0:02:56.7]} 9. Ne1 {[%clk 0:02:54]} 9... Ng7 {[%clk 0:02:56.2]}
10. Nd3 {[%clk 0:02:52.7]} 10... f5 {[%clk 0:02:55.3]} 11. f4 {[%clk 0:02:53]}
11... exf4 {[%clk 0:02:47]} 12. Bxf4 {[%clk 0:02:51.3]} 12... fxe4 {[%clk
0:02:46.6]} 13. Nxe4 {[%clk 0:02:50.5]} 13... Bf5 {[%clk 0:02:46.7]} 14. Ng3
{[%clk 0:02:47.6]} 14... Nd7 {[%clk 0:02:38.4]} 15. Qd2 {[%clk 0:02:47.1]} 15...
Nf6 {[%clk 0:02:34.4]} 16. Rae1 {[%clk 0:02:43.3]} 16... Qd7 {[%clk 0:02:26.6]}
17. Bh6 {[%clk 0:02:37.8]} 17... Ne4 {[%clk 0:02:15.5]} 18. Nxe4 {[%clk
0:02:36.5]} 18... Bxe4 {[%clk 0:02:16.4]} 19. Qc3 {[%clk 0:02:22.8]} 19... Bh4
{[%clk 0:01:56]} 20. Bg4 {[%clk 0:02:13.1]} 20... Bf5 {[%clk 0:01:35]} 21. Bxg7
{[%clk 0:01:42.5]} 21... Bxe1 {[%clk 0:01:25.7]} 22. Rxe1 {[%clk 0:01:01.6]}
22... Qxg7 {[%clk 0:01:19.6]} 23. Bxf5 {[%clk 0:00:52.6]} 23... Qxc3 {[%clk
0:01:17.8]} 24. Be6+ {[%clk 0:00:52.7]} 24... Kg7 {[%clk 0:01:10.5]} 25. bxc3
{[%clk 0:00:53.6]} 25... Rf6 {[%clk 0:01:02.6]} 26. a4 {[%clk 0:00:52.9]} 26...
b6 {[%clk 0:01:00.4]} 27. g3 {[%clk 0:00:48.1]} 27... h5 {[%clk 0:00:59.6]} 28.
Nf4 {[%clk 0:00:47.8]} 28... Kh6 {[%clk 0:00:57.3]} 29. Bh3 {[%clk 0:00:36.2]}
29... g5 {[%clk 0:00:56.4]} 30. Ne6 {[%clk 0:00:36.4]} 30... g4 {[%clk
0:00:55.7]} 31. Bg2 {[%clk 0:00:36.4]} 31... Rb8 {[%clk 0:00:46.7]} 32. Nf4
{[%clk 0:00:29.9]} 32... a6 {[%clk 0:00:43]} 33. Bf1 {[%clk 0:00:30.2]} 33... h4
{[%clk 0:00:41.4]} 34. Re7 {[%clk 0:00:28.6]} 34... h3 {[%clk 0:00:40]} 35. Bd3
{[%clk 0:00:28.5]} 35... Rh8 {[%clk 0:00:25.6]} 36. Rb7 {[%clk 0:00:26.1]} 36...
Kg5 {[%clk 0:00:22.9]} 37. Kf2 {[%clk 0:00:25.1]} 37... Rxf4+ {[%clk 0:00:20]}
38. gxf4+ {[%clk 0:00:25.3]} 38... Kxf4 {[%clk 0:00:20.9]} 39. Rf7+ {[%clk
0:00:23.7]} 39... Kg5 {[%clk 0:00:20.4]} 40. Rd7 {[%clk 0:00:20.1]} 40... Rf8+
{[%clk 0:00:17.9]} 41. Kg1 {[%clk 0:00:16.5]} 41... g3 {[%clk 0:00:17.8]} 42.
hxg3 {[%clk 0:00:16.6]} 42... Rf3 {[%clk 0:00:15.7]} 43. Bf1 {[%clk 0:00:15.8]}
43... Rxg3+ {[%clk 0:00:15.7]} 44. Kh2 {[%clk 0:00:16.4]} 44... Rxc3 {[%clk
0:00:16.6]} 45. Rxd6 {[%clk 0:00:16.5]} 45... Kf5 {[%clk 0:00:16.8]} 46. Bxh3+
{[%clk 0:00:16.5]} 46... Ke5 {[%clk 0:00:16.9]} 47. Rxb6 {[%clk 0:00:17]} 47...
Rxc4 {[%clk 0:00:17.1]} 48. d6 {[%clk 0:00:17.6]} 48... Rxa4 {[%clk 0:00:17.3]}
49. d7 {[%clk 0:00:17.8]} 49... Rd4 {[%clk 0:00:18.2]} 50. Rxa6 {[%clk
0:00:17.6]} 50... c4 {[%clk 0:00:17.6]} 51. Re6+ {[%clk 0:00:17.9]} 51... Kf4
{[%clk 0:00:16.7]} 52. Re8 {[%clk 0:00:18.4]} 52... Rd2+ {[%clk 0:00:15.8]} 53.
Kg1 {[%clk 0:00:18.9]} 53... Kg3 {[%clk 0:00:14.5]} 54. d8=Q {[%clk 0:00:19.4]}
54... Rxd8 {[%clk 0:00:12.8]} 55. Rxd8 {[%clk 0:00:20.3]} 55... Kxh3 {[%clk
0:00:12.9]} 56. Rc8 {[%clk 0:00:21]} 56... Kg3 {[%clk 0:00:13.8]} 57. Rxc4
{[%clk 0:00:21.1]} 1-0

[Event "*** Titled Tuesday Blitz"]
[Site "Chess.com"]
[Date "2021.02.16"]
[Round "8"]
[White "KubaGepard"]
[Black "PotapovaM"]
[Result "0-1"]
[WhiteElo "2401"]
[BlackElo "2587"]
[TimeControl "180+1"]
[EndTime "11:30:28 PST"]
[Termination "PotapovaM won by resignation"]

1. d4 {[%clk 0:03:00.9]} 1... Nf6 {[%clk 0:02:58.8]} 2. Nf3 {[%clk 0:03:00.1]}
2... e6 {[%clk 0:02:55.6]} 3. g3 {[%clk 0:03:00.4]} 3... b6 {[%clk 0:02:52.9]}
4. Bg2 {[%clk 0:03:00.2]} 4... Bb7 {[%clk 0:02:52.9]} 5. O-O {[%clk 0:03:00.8]}
5... Be7 {[%clk 0:02:52.7]} 6. c4 {[%clk 0:03:01]} 6... O-O {[%clk 0:02:52.7]}
7. Re1 {[%clk 0:03:01.3]} 7... a5 {[%clk 0:02:49.9]} 8. d5 {[%clk 0:02:55]} 8...
exd5 {[%clk 0:02:43.4]} 9. Nh4 {[%clk 0:02:54.1]} 9... c6 {[%clk 0:02:34.8]} 10.
cxd5 {[%clk 0:02:47.1]} 10... Nxd5 {[%clk 0:02:30.2]} 11. Nf5 {[%clk 0:02:46.8]}
11... Na6 {[%clk 0:02:19.8]} 12. e4 {[%clk 0:02:43.2]} 12... Ndc7 {[%clk
0:02:17.4]} 13. e5 {[%clk 0:02:31.7]} 13... Ne6 {[%clk 0:02:05.2]} 14. Nc3
{[%clk 0:02:24.5]} 14... Nac5 {[%clk 0:01:53]} 15. f4 {[%clk 0:02:11.6]} 15...
Ba6 {[%clk 0:01:52.3]} 16. Nxe7+ {[%clk 0:02:09]} 16... Qxe7 {[%clk 0:01:52.1]}
17. f5 {[%clk 0:02:09.5]} 17... Nc7 {[%clk 0:01:40.4]} 18. f6 {[%clk 0:01:35.7]}
18... gxf6 {[%clk 0:01:37.8]} 19. Bh6 {[%clk 0:01:15.7]} 19... f5 {[%clk
0:01:20.9]} 20. Qh5 {[%clk 0:00:58.9]} 20... Qe6 {[%clk 0:00:46.9]} 21. Bg5
{[%clk 0:00:19.5]} 21... Qg6 {[%clk 0:00:45.7]} 22. Qh4 {[%clk 0:00:19.6]} 22...
N7e6 {[%clk 0:00:39.9]} 23. Bf6 {[%clk 0:00:19.5]} 23... Rfe8 {[%clk 0:00:40.5]}
24. Bf3 {[%clk 0:00:18.4]} 24... Ng7 {[%clk 0:00:24.4]} 25. Rad1 {[%clk
0:00:16.6]} 25... Re6 {[%clk 0:00:19.2]} 26. Rd6 {[%clk 0:00:14.1]} 26... Rae8
{[%clk 0:00:17.2]} 27. Red1 {[%clk 0:00:12.5]} 27... a4 {[%clk 0:00:12.7]} 28.
Nxa4 {[%clk 0:00:11.5]} 28... Nxa4 {[%clk 0:00:10]} 29. Qxa4 {[%clk 0:00:11.2]}
29... Bb5 {[%clk 0:00:10]} 30. Qd4 {[%clk 0:00:09.5]} 30... c5 {[%clk 0:00:09]}
31. Qd2 {[%clk 0:00:09.7]} 31... Nh5 {[%clk 0:00:07.8]} 32. Bxh5 {[%clk
0:00:09]} 32... Qxh5 {[%clk 0:00:07.8]} 33. Rxe6 {[%clk 0:00:08.7]} 33... Rxe6
{[%clk 0:00:06.5]} 34. Re1 {[%clk 0:00:07.8]} 34... Qg4 {[%clk 0:00:05.6]} 35.
Qg2 {[%clk 0:00:03.2]} 35... Bc6 {[%clk 0:00:06.1]} 36. Qf2 {[%clk 0:00:03.7]}
36... h5 {[%clk 0:00:05.6]} 37. b4 {[%clk 0:00:04]} 37... cxb4 {[%clk
0:00:05.1]} 38. Rc1 {[%clk 0:00:03.9]} 38... b5 {[%clk 0:00:04.7]} 39. Qd2
{[%clk 0:00:03.3]} 39... Qg6 {[%clk 0:00:04.2]} 40. Rxc6 {[%clk 0:00:03.1]}
40... Rxc6 {[%clk 0:00:02.8]} 41. Qxd7 {[%clk 0:00:03.6]} 41... Rc1+ {[%clk
0:00:03.1]} 42. Kf2 {[%clk 0:00:03.4]} 42... Kh7 {[%clk 0:00:03.6]} 43. Qe8
{[%clk 0:00:02.9]} 43... Qg8 {[%clk 0:00:04.1]} 44. Qxb5 {[%clk 0:00:02.1]}
44... Rc2+ {[%clk 0:00:04]} 45. Ke1 {[%clk 0:00:01.7]} 45... Qc8 {[%clk
0:00:03.9]} 46. Qd3 {[%clk 0:00:02.1]} 46... Rc1+ {[%clk 0:00:04]} 47. Kd2
{[%clk 0:00:02.4]} 47... Qc3+ {[%clk 0:00:04]} 48. Qxc3 {[%clk 0:00:02.1]} 48...
Rxc3 {[%clk 0:00:04.9]} 49. e6 {[%clk 0:00:01.7]} 49... Rc6 {[%clk 0:00:04.9]}
50. exf7 {[%clk 0:00:02]} 50... Rxf6 {[%clk 0:00:05.1]} 0-1

[Event "*** Titled Tuesday Blitz"]
[Site "Chess.com"]
[Date "2021.02.16"]
[Round "8"]
[White "anskam"]
[Black "Pantata007"]
[Result "1-0"]
[WhiteElo "1761"]
[BlackElo "2253"]
[TimeControl "180+1"]
[EndTime "11:30:28 PST"]
[Termination "anskam won on time"]

1. e4 {[%clk 0:03:00]} 1... e5 {[%clk 0:02:59.1]} 2. Nf3 {[%clk 0:02:59.3]} 2...
Nc6 {[%clk 0:02:58.6]} 3. Bb5 {[%clk 0:02:58.4]} 3... a6 {[%clk 0:02:58.3]} 4.
Ba4 {[%clk 0:02:57.9]} 4... Nf6 {[%clk 0:02:58.2]} 5. O-O {[%clk 0:02:57.4]}
5... Be7 {[%clk 0:02:58.5]} 6. Re1 {[%clk 0:02:56.5]} 6... b5 {[%clk 0:02:58.7]}
7. Bb3 {[%clk 0:02:55.6]} 7... O-O {[%clk 0:02:59.2]} 8. d3 {[%clk 0:02:54.7]}
8... d6 {[%clk 0:02:56.9]} 9. c3 {[%clk 0:02:54]} 9... Na5 {[%clk 0:02:57.1]}
10. Bc2 {[%clk 0:02:53.2]} 10... c5 {[%clk 0:02:57.6]} 11. Nbd2 {[%clk
0:02:52.7]} 11... Nc6 {[%clk 0:02:58.1]} 12. Nf1 {[%clk 0:02:52.2]} 12... Re8
{[%clk 0:02:58.5]} 13. Ng3 {[%clk 0:02:51.5]} 13... h6 {[%clk 0:02:58.8]} 14. h3
{[%clk 0:02:48.4]} 14... Be6 {[%clk 0:02:58.6]} 15. Be3 {[%clk 0:02:47.5]} 15...
d5 {[%clk 0:02:53.1]} 16. exd5 {[%clk 0:02:44.1]} 16... Nxd5 {[%clk 0:02:53.1]}
17. Bd2 {[%clk 0:02:39.9]} 17... Qd7 {[%clk 0:02:42.5]} 18. Nxe5 {[%clk
0:02:33.5]} 18... Nxe5 {[%clk 0:02:37.6]} 19. Rxe5 {[%clk 0:02:32.6]} 19... Bd6
{[%clk 0:02:35.4]} 20. Re1 {[%clk 0:02:31.1]} 20... Bxg3 {[%clk 0:02:29]} 21.
fxg3 {[%clk 0:02:30.2]} 21... Rad8 {[%clk 0:02:29.9]} 22. Qf3 {[%clk 0:02:25.4]}
22... b4 {[%clk 0:02:16.4]} 23. c4 {[%clk 0:02:22.7]} 23... Ne7 {[%clk
0:02:07.1]} 24. Rf1 {[%clk 0:02:19.1]} 24... Nf5 {[%clk 0:02:05.9]} 25. Rae1
{[%clk 0:02:15.2]} 25... Nd4 {[%clk 0:02:03.1]} 26. Qd1 {[%clk 0:02:13]} 26...
Bf5 {[%clk 0:01:39.9]} 27. Bb1 {[%clk 0:02:00.8]} 27... Nc6 {[%clk 0:01:22]} 28.
Rxe8+ {[%clk 0:01:52.2]} 28... Rxe8 {[%clk 0:01:21]} 29. Qf3 {[%clk 0:01:45.7]}
29... Nd4 {[%clk 0:01:12.7]} 30. Qf2 {[%clk 0:01:34.4]} 30... Re2 {[%clk
0:01:07.7]} 31. Qf4 {[%clk 0:01:30.1]} 31... g5 {[%clk 0:00:44.7]} 32. Qb8+
{[%clk 0:01:28.4]} 32... Kg7 {[%clk 0:00:41.5]} 33. Rf2 {[%clk 0:01:26.7]} 33...
Qe6 {[%clk 0:00:31.6]} 34. g4 {[%clk 0:00:52.3]} 34... Bg6 {[%clk 0:00:25.8]}
35. Qg3 {[%clk 0:00:46.7]} 35... Re1+ {[%clk 0:00:18.6]} 36. Bxe1 {[%clk
0:00:45.6]} 36... Qxe1+ {[%clk 0:00:19.5]} 37. Kh2 {[%clk 0:00:37]} 37... Qxb1
{[%clk 0:00:16.2]} 38. Qe5+ {[%clk 0:00:35.5]} 38... Kh7 {[%clk 0:00:13.4]} 39.
Qxc5 {[%clk 0:00:30.4]} 39... Qxd3 {[%clk 0:00:11.1]} 40. Qe7 {[%clk 0:00:16.5]}
40... Ne2 {[%clk 0:00:02.9]} 41. Qxe2 {[%clk 0:00:10.8]} 41... Qd6+ {[%clk
0:00:01.1]} 42. g3 {[%clk 0:00:07.5]} 42... Qd4 {[%clk 0:00:01.2]} 43. Qd2
{[%clk 0:00:03.4]} 43... Qxc4 {[%clk 0:00:01]} 44. b3 {[%clk 0:00:02.3]} 1-0